[Event "IV Estrellas 2022"]
[Site "La Palma"]
[Date "2022.08.11"]
[Round "8.14"]
[White "Gil Jimenez, David"]
[Black "Sosa Suarez, Carla Cristina"]
[Result "0-1"]
[ECO "E61"]
[WhiteElo "1871"]
[BlackElo "2125"]
[Annotator "TA"]
[PlyCount "106"]
[EventDate "2022.08.06"]
[EventType "swiss"]
[EventCountry "ESP"]
[SourceTitle "playchess.com"]
[Source "ChessBase"]
[SourceQuality "1"]
[TimeControl "5400+30"]

{[%evp 13,106,17,17,0,9,0,0,0,16,0,21,23,22,0,0,-127,0,-27,-20,-49,-47,-42,-45,-42,-40,-37,-17,-21,0,0,-3,-24,12,-13,0,-11,-6,-10,-7,-10,-10,-17,-13,-22,-8,-10,-1,-12,-14,-11,-11,-35,-44,-70,-54,-51,-25,-29,-25,-27,-25,-25,-25,-25,-25,-55,-25,-26,0,0,0,0,0,0,0,0,0,0,0,0,0,0,0,0,0,-1360,0,-12838,-12833,-12836,-11169,-12840,-12839,-12840,-1753]} 1. d4 {[%emt 0:00:03]} d6 {[%emt 0:00:04]} 2. c4 {[%emt 0:00:17]} e5 {[%emt 0:00:04]} 3. e3 {[%emt 0:01:54]} Nd7 {[%emt 0:00:07]} 4. Nf3 {[%emt 0:01:43]} g6 {[%emt 0:02:22]} 5. Be2 {[%emt 0:00:46]} Bg7 {[%emt 0:01:22]} 6. O-O {[%emt 0:00:22]} Ngf6 {[%emt 0:01:15]} 7. Nc3 {[%emt 0:03:45]} O-O {[%emt 0:00:05]} 8. dxe5 {[%emt 0:07:06] E61: King's Indian: Early deviations for White, including Smyslov System.} dxe5 {[%emt 0:00:30]} 9. Rb1 {[%emt 0:15:03] [#]} a5 $146 {[%emt 0:08:14]} ({Predecessor:} 9... e4 10. Nd4 Qe7 11. Nd5 Nxd5 12. cxd5 Nb6 13. b3 Nxd5 14. Bb2 Rd8 15. a3 c5 {0-1 (28) Bieszk,S (1383)-Callow,C (2079) LSS email 2020}) 10. b3 {[%emt 0:00:51] The position is equal.} Qe7 {[%emt 0:14:10] Inhibits Ba3.} 11. e4 {[%emt 0:22:30]} c6 {[%emt 0:01:44]} 12. Qc2 {[%emt 0:00:48]} Re8 {[%emt 0:05:53]} 13. Rd1 {[%emt 0:00:48]} Nf8 {[%emt 0:02:44]} 14. Na4 {[%emt 0:05:46] [#]} (14. h3 $11) 14... Bg4 {[%emt 0:04:13]} (14... Nxe4 $1 $17 {[%mdl 512]} 15. Be3 (15. Qxe4 $2 Bf5 $19) 15... Nd6) 15. Nc3 {[%emt 0:04:39]} Nh5 {[%emt 0:06:48][%cal Bf6h5,Bh5f4,Bf4e2][%mdl 32]} 16. h3 {[%emt 0:03:08]} Bxf3 {[%emt 0:00:29]} 17. Bxf3 {[%emt 0:00:12]} Nf4 {[%emt 0:01:10]} 18. Ne2 {[%emt 0:00:46]} Nxe2+ {[%emt 0:00:26]} 19. Bxe2 {[%emt 0:03:06]} Ne6 {[%emt 0:00:05]} 20. Be3 {[%emt 0:01:26]} Nd4 {[%emt 0:00:40]} 21. Bxd4 {[%emt 0:00:45]} exd4 {[%emt 0:00:01]} 22. Bd3 {[%emt 0:02:48]} Bh6 {[%emt 0:02:14]} 23. Qb2 {[%emt 0:05:33]} c5 {[%emt 0:03:02]} 24. a3 {[%emt 0:01:12]} Qf6 {[%emt 0:07:41]} 25. b4 {[%emt 0:17:43]} axb4 {[%emt 0:37:37]} 26. axb4 {[%emt 0:00:00]} b6 {[%emt 0:00:00]} 27. bxc5 {[%emt 0:00:00]} bxc5 {[%emt 0:00:00]} 28. Qb6 {[%emt 0:00:00]} Qxb6 {[%emt 0:00:00]} (28... Qe5 {keeps more tension.} 29. Qc6 Ra2 30. Rb7 Bf8) 29. Rxb6 {[%emt 0:00:00]} Ra3 {[%emt 0:00:00]} 30. Rb5 {[%emt 0:00:00]} Bf8 {[%emt 0:00:00]} 31. f4 {[%emt 0:00:00]} Rea8 {[%emt 0:00:00]} 32. Rb2 {[%emt 0:00:00]} Rc3 {[%emt 0:00:00]} 33. Rc2 {[%emt 0:00:00]} Rxc2 {[%emt 0:00:00]} 34. Bxc2 $15 {[%emt 0:00:00][%mdl 4096] Endgame KRB-KRB} Ra2 {[%emt 0:00:00]} (34... Bh6 $5 {[%cal Rh6f4]} 35. g3 g5 36. fxg5 Bxg5 $17) 35. Bd3 {[%emt 0:00:00]} Bh6 {[%emt 0:00:00]} 36. g3 {[%emt 0:00:00]} g5 {[%emt 0:00:00]} 37. Rf1 {[%emt 0:00:33]} gxf4 {[%emt 0:00:00]} 38. gxf4 {[%emt 0:00:07]} Rd2 {[%emt 0:00:00]} 39. Bb1 {[%emt 0:01:16]} Rb2 {[%emt 0:00:00][%cal Oh6f4]} 40. Bd3 $1 {[%emt 0:00:59]} Rb3 {[%emt 0:00:00]} 41. Rf3 {[%emt 0:01:14]} Bxf4 {[%emt 0:00:00]} 42. Rxf4 {[%emt 0:00:54] Strongly threatening Bf1.} Rxd3 $11 {[%emt 0:00:00] KR-KR} 43. Rf5 {[%emt 0:00:22]} Rxh3 {[%emt 0:00:00]} 44. Rxc5 {[%emt 0:00:09]} Rc3 {[%emt 0:00:00]} 45. Kf2 {[%emt 0:00:46]} Kg7 {[%emt 0:00:00]} 46. Kg2 {[%emt 0:01:19]} Kg6 {[%emt 0:01:15]} 47. Kf2 {[%emt 0:00:35]} h5 {[%emt 0:00:08] Hoping for ...h4.} 48. Kg2 {[%emt 0:00:18]} h4 {[%emt 0:00:23] White must now prevent ...Kf6.} 49. Kh2 $2 {[%emt 0:00:23][%mdl 8192] [#]} (49. Rd5 $11) 49... Re3 $2 {[%emt 0:01:34]} ({Better is} 49... Kf6 $1 $19 {[%cal Rf6e6] And now ...Ke6 would win.} 50. Rd5 Rxc4) 50. e5 $2 {[%emt 0:00:35][%mdl 8192]} (50. Rd5 $11) 50... Kf5 {[%emt 0:00:42] Black is clearly winning.} 51. Rc7 {[%emt 0:00:41]} Ke6 {[%emt 0:01:08]} 52. Rc6+ {[%emt 0:00:16]} Kxe5 {[%emt 0:00:14]} 53. Rh6 {[%emt 0:00:11]} d3 {[%emt 0:01:22] Weighted Error Value: White=0.59/Black=0.28 (precise)} (53... Rc3 $142 54. Kg1 Rxc4 55. Rxh4 {[#]} d3 $1 56. Rh5+ Kd4) 0-1

[Event "IV Estrellas 2022"]
[Site "La Palma"]
[Date "2022.08.11"]
[Round "8.15"]
[White "Diaz Perez, Michel Alejandro"]
[Black "Guerrero Orihuela, Jose Luis"]
[Result "1/2-1/2"]
[ECO "A30"]
[WhiteElo "2433"]
[BlackElo "1858"]
[Annotator "TA"]
[PlyCount "53"]
[EventDate "2022.08.06"]
[EventType "swiss"]
[EventCountry "ESP"]
[SourceTitle "playchess.com"]
[Source "ChessBase"]
[SourceQuality "1"]
[TimeControl "5400+30"]

{[%evp 20,53,25,33,30,31,46,37,65,7,51,53,81,74,81,54,59,38,71,17,18,16,21,0,0,0,0,-107,-97,-90,-61,-75,-79,-68,1072,-52]} 1. c4 {[%emt 0:00:06]} e6 {[%emt 0:00:08]} 2. Nc3 {[%emt 0:00:20]} Nf6 {[%emt 0:00:21]} 3. Nf3 {[%emt 0:00:09]} c5 {[%emt 0:00:38]} 4. e3 {[%emt 0:00:21]} Nc6 {[%emt 0:00:40]} 5. b3 {[%emt 0:01:26]} Be7 {[%emt 0:01:02]} 6. Bb2 {[%emt 0:01:25]} b6 {[%emt 1:30:41]} 7. Be2 {[%emt 0:05:00]} Bb7 {[%emt 0:00:00]} 8. O-O {[%emt 0:00:26]} O-O {[%emt 0:00:00]} 9. d4 {[%emt 0:09:58]} cxd4 {[%emt 0:00:00]} 10. Nxd4 {[%emt 0:05:20]} Nxd4 {[%emt 0:00:00]} 11. Qxd4 {[%emt 0:03:00]} Bc5 {[%emt 0:00:00] A30: Symmetrical English: Double Fianchetto and Hedgehog.} 12. Qf4 {[%emt 0:05:39]} d5 {[%emt 0:00:00]} 13. cxd5 {[%emt 0:11:42] [#]} Bd6 $146 {[%emt 0:00:00] White is slightly better.} ({Predecessor:} 13... Nxd5 14. Nxd5 Bxd5 15. Rfd1 Qe7 16. Qg3 f6 17. Bd3 Rad8 18. Qh3 g6 19. Qg4 {½-½ (19) Waardenburg,F (1602)-Schelleman,I (1706) Rotterdam 2016}) 14. Qf3 {[%emt 0:08:14] White is more active.} (14. Qd4 $14) 14... Nxd5 {[%emt 0:00:00]} 15. Ne4 {[%emt 0:07:16]} f5 {[%emt 0:00:00] Against Qg4} 16. Nxd6 {[%emt 0:01:49]} Qxd6 {[%emt 0:00:00]} 17. Rfd1 {[%emt 0:08:15]} Qe7 {[%emt 0:00:00][%cal Od5c3]} 18. Qg3 {[%emt 0:05:19]} Rac8 {[%emt 0:00:00] Hoping for ...Rc2.} 19. Be5 {[%emt 0:05:00] This bishop pair is nice.} ({Better is} 19. Rac1 $16) 19... Nc3 $11 {[%emt 0:00:00]} 20. Bxc3 {[%emt 0:07:02]} Rxc3 {[%emt 0:00:00]} 21. Bc4 {[%emt 0:00:20] Black must now prevent Qe5.} f4 $1 {[%emt 0:00:00]} 22. Qh3 {[%emt 0:03:25][%cal Od1d7] Strongly threatening Rd7!} fxe3 {[%emt 0:00:00]} 23. Bxe6+ {[%emt 0:02:45]} (23. Qxe6+ $11 Qxe6 24. Bxe6+ Kh8 25. fxe3) 23... Kh8 $17 {[%emt 0:00:00]} 24. fxe3 {[%emt 0:00:41]} Qc5 {[%emt 0:00:00]} (24... Qf6 $2 25. Rf1 Qe7 26. Rxf8+ Qxf8 27. Rf1 $18) 25. Rf1 {[%emt 0:03:16] Rxf8+ is the strong threat.} Rxf1+ {[%emt 0:02:07]} 26. Rxf1 {[%emt 0:00:04] Threatens to win with Qh4.} Rxe3 $2 {[%emt 0:00:13][%mdl 8192] [#]} (26... Rc2 $15 27. Rf2 Rc1+ 28. Rf1 Rc2) 27. Rf8+ $3 {[%emt 0:00:48][%mdl 512] Weighted Error Value: White=0.27 (precise) /Black=0.17 (very precise)} 1/2-1/2

[Event "IV Estrellas 2022"]
[Site "La Palma"]
[Date "2022.08.11"]
[Round "8.16"]
[White "Miranda Herrera, Miguel"]
[Black "Meneses Arenas, Mikel"]
[Result "1-0"]
[ECO "E73"]
[WhiteElo "1904"]
[BlackElo "1807"]
[Annotator "TA"]
[PlyCount "71"]
[EventDate "2022.08.06"]
[EventType "swiss"]
[EventCountry "ESP"]
[SourceTitle "playchess.com"]
[Source "ChessBase"]
[SourceQuality "1"]
[TimeControl "5400+30"]

{[%evp 14,71,16,25,33,0,5,16,16,11,1,-41,0,-16,-9,-66,-55,-61,-65,-66,-75,-339,-351,-575,-447,-419,-293,-299,-356,-342,-326,-323,0,0,0,0,34,0,0,-676,-354,-29988,-29989,-29997,-15,-39,-40,-33,-33,-134,-41,-41,497,475,818,789,922,-1224,5513,1002]} 1. d4 {[%emt 0:00:03]} Nf6 {[%emt 0:02:48]} 2. c4 {[%emt 0:00:06]} g6 {[%emt 0:00:09]} 3. h4 {[%emt 0:00:04]} Bg7 {[%emt 0:01:31]} 4. Nc3 {[%emt 0:00:05]} d6 {[%emt 0:00:31]} 5. e4 {[%emt 0:00:06]} O-O {[%emt 0:02:44]} 6. Be2 {[%emt 0:00:04]} c5 {[%emt 0:05:11]} 7. d5 {[%emt 0:00:06]} e6 {[%emt 0:00:11]} 8. h5 {[%emt 0:00:11]} exd5 {[%emt 0:00:28] E73: King's Indian: Averbakh Variation without 6...c5.} 9. exd5 {[%emt 0:00:05]} Re8 {[%emt 0:01:17]} 10. hxg6 {[%emt 0:08:56]} fxg6 {[%emt 0:02:43] The position is equal.} 11. Bg5 {[%emt 0:07:55]} Nbd7 {[%emt 0:05:05]} 12. Qd2 {[%emt 0:01:29] [#]} b5 $146 {[%emt 0:04:23]} ({Predecessor:} 12... Ne5 13. O-O-O Nf7 14. Be3 a6 15. Nh3 b5 16. cxb5 axb5 17. Bxb5 Bd7 18. Bxd7 Qxd7 {0-1 (61) Lamaze,S (2203)-Budrewicz,K (2289) Chess.com INT 2021}) 13. Nxb5 {[%emt 0:02:53]} Qb6 {[%emt 0:01:16]} 14. f3 {[%emt 0:09:59] Against Ne4} (14. Nc3 $1 $11) 14... Rb8 $15 {[%emt 0:09:26]} 15. a4 {[%emt 0:04:10]} Ne5 $1 {[%emt 0:03:40] And now ...Nxc4 would win.} 16. a5 {[%emt 0:08:51]} Qd8 {[%emt 0:00:58] aiming for ...Nxc4.} 17. Nxa7 $2 {[%emt 0:04:23][%mdl 8192]} (17. Kf1 $17) 17... Rxb2 $1 $19 {[%emt 0:04:29]} (17... Nxc4 18. Qc3 Nxd5 19. Qxg7+ (19. Bxd8 Nxc3 20. Nxc8 Rxc8 $17) 19... Kxg7 20. Bxd8 Rxb2 21. Nxc8 $11) 18. Qc3 {[%emt 0:00:04] [#]} (18. Qxb2 Nd3+ 19. Kf1 Nxb2 $19) (18. Nc6 {was called for.} Qc7 19. Qd1 (19. Qxb2 $2 Nd3+ 20. Kf1 Nxb2 $19) (19. Ne7+ $2 Qxe7 20. Qe3 Qb7 $19)) 18... Bf5 $1 {[%emt 0:16:32] Threatens to win with ...Nd3+.} 19. Nc6 {[%emt 0:08:44][%cal Ba7c6,Bc6d8,Bd8e6][%mdl 32]} Nd3+ {[%emt 0:08:51]} 20. Qxd3 {[%emt 0:05:51]} (20. Kf1 Ne4 $1 {[%mdl 512]} 21. fxe4 (21. Bxd8 $2 Ng3#) (21. Qxg7+ $2 Kxg7 22. Bh6+ Kh8 $19) 21... Qxg5 $19) 20... Bxd3 {[%emt 0:00:55]} 21. Nxd8 {[%emt 0:00:06]} Bxe2 {[%emt 0:00:27]} 22. Nxe2 {[%emt 0:01:02]} Rexe2+ {[%emt 0:04:41]} (22... Rbxe2+ $19 23. Kf1 Nh5 24. Rxh5 Bxa1) 23. Kd1 $11 {[%emt 0:02:36]} Rxg2 {[%emt 0:06:27]} 24. Ne6 {[%emt 0:05:46]} Bh8 {[%emt 0:04:52]} 25. Re1 {[%emt 0:09:00]} (25. Bc1 $5 {[%cal Rc1b2]} Rb3 26. Nf4 $16) 25... Nd7 {[%emt 0:09:29] Hoping for ...Bc3.} 26. Bf4 $2 {[%emt 0:07:59][%mdl 8192]} (26. a6 $11 Nb6 27. a7) 26... Bc3 {[%emt 0:00:42]} 27. Rf1 $2 {[%emt 0:02:07]} (27. a6 $19 Bxe1 28. a7) 27... Ne5 $1 {[%emt 0:00:26]} 28. a6 {[%emt 0:01:19]} Ra2 $2 {[%emt 0:01:59]} (28... Nxc4 29. a7 Nb6 30. a8=Q+ Nxa8 31. Rxa8+ Kf7 32. Ng5+ Ke7 33. Kc1 (33. Nxh7 $2 {leads to mate.} Rb1+ 34. Bc1 Rd2+ 35. Ke1 Rxc1#) 33... Rgc2+ 34. Kd1 $11) (28... Nd3 {mates} 29. a7 Rgd2+ $1 {[%mdl 512]} 30. Bxd2 Rxd2#) 29. Rxa2 {[%emt 0:00:05] Dancing on a razor blade.} Rxa2 {[%emt 0:00:10]} 30. Bxe5 {[%emt 0:00:37]} Bxe5 {[%emt 0:00:27][%mdl 4096] Endgame KRB-KRN} 31. Nc7 {[%emt 0:03:21] [#]} (31. f4 $15 Bf6 32. Nc7 (32. f5 g5 $17)) 31... h5 {[%emt 0:00:56]} ({Black should play} 31... g5 $1 $17 {...h5 is the strong threat.} 32. Re1 Kf7) 32. f4 $15 {[%emt 0:00:54]} Bc3 {[%emt 0:01:00][%mdl 8192]} (32... Bf6 $15 {keeps the upper hand.}) 33. Nb5 $1 $18 {[%emt 0:02:45][%csl LRc3,LRd6]} Bd4 {[%emt 0:00:46]} (33... Bf6 $142 34. a7 Bd8) 34. a7 {[%emt 0:00:32]} Kf8 {[%emt 0:01:06]} 35. Rf2 $4 {[%emt 0:05:46][%mdl 8192]} Bb2 $4 {[%mdl 8192] [#]} (35... Bxf2 $19 36. Nxd6 Rxa7) 36. Rf3 {[%emt 0:00:00] Weighted Error Value: White=0.93/Black=0.94} (36. Rxb2 $142 $1 {[%mdl 512]} Ra5 (36... Ra4 37. Rb3) 37. Ke2) 1-0

[Event "IV Estrellas 2022"]
[Site "La Palma"]
[Date "2022.08.11"]
[Round "8.17"]
[White "Chitsazian, Daniel"]
[Black "Marrero Rodriguez, Jorge"]
[Result "1/2-1/2"]
[ECO "B17"]
[WhiteElo "1767"]
[BlackElo "1941"]
[Annotator "NA RC"]
[PlyCount "47"]
[EventDate "2022.08.06"]
[EventType "swiss"]
[EventCountry "ESP"]
[SourceTitle "playchess.com"]
[Source "ChessBase"]
[SourceQuality "1"]
[TimeControl "5400+30"]

1. e4 {[%emt 0:00:02]} c6 {[%emt 0:00:04]} 2. d4 {[%emt 0:00:06]} d5 {[%emt 0:00:05]} 3. Nd2 {[%emt 0:00:04]} dxe4 {[%emt 0:00:14]} 4. Nxe4 {[%emt 0:00:02]} Nd7 {[%emt 0:00:12]} 5. Nf3 {[%emt 0:00:12]} Ngf6 {[%emt 0:00:19]} 6. Nxf6+ {[%emt 0:00:18]} Nxf6 {[%emt 0:00:08]} 7. Bc4 {[%emt 0:00:47]} Bf5 {[%emt 0:01:43]} 8. Ne5 {[%emt 0:01:10]} e6 {[%emt 0:00:37]} 9. a4 {[%emt 0:09:54]} Bd6 {[%emt 0:02:14]} 10. Bf4 {[%emt 0:04:15]} O-O {[%emt 0:05:08]} 11. O-O {[%emt 0:01:59]} Qc7 {[%emt 0:02:11]} 12. Bd3 {[%emt 0:03:47]} Bxd3 {[%emt 0:00:52]} 13. Qxd3 {[%emt 0:00:58]} c5 {[%emt 0:00:50]} 14. Bg3 {[%emt 0:12:46]} Rfd8 {[%emt 0:01:22]} 15. Rac1 {[%emt 0:07:47]} cxd4 {[%emt 0:01:14]} 16. Qxd4 {[%emt 0:01:41]} Nh5 {[%emt 0:02:03]} 17. Rce1 {[%emt 0:10:10]} f6 {[%emt 0:01:44]} 18. Qg4 {[%emt 0:00:53]} Nxg3 {[%emt 0:00:08]} 19. Qxe6+ {[%emt 0:00:12]} Kf8 {[%emt 0:00:10]} 20. fxg3 {[%emt 0:00:36]} Bxe5 {[%emt 0:04:28]} 21. Rxe5 {[%emt 0:02:39]} Re8 {[%emt 0:03:04]} 22. Rxf6+ {[%emt 0:01:04]} gxf6 {[%emt 0:00:25]} 23. Qxf6+ {[%emt 0:00:07]} Qf7 {[%emt 0:00:05]} 24. Qh8+ {[%emt 0:00:04]} 1/2-1/2

[Event "IV Estrellas 2022"]
[Site "La Palma"]
[Date "2022.08.11"]
[Round "8.18"]
[White "Arnaiz Yanes, Miguel Angel"]
[Black "Santos Ramos, Carlos"]
[Result "1-0"]
[ECO "D02"]
[WhiteElo "1923"]
[BlackElo "1855"]
[Annotator "TA"]
[PlyCount "113"]
[EventDate "2022.08.06"]
[EventType "swiss"]
[EventCountry "ESP"]
[SourceTitle "playchess.com"]
[Source "ChessBase"]
[SourceQuality "1"]
[TimeControl "5400+30"]

{[%evp 9,113,9,25,-2,45,24,34,21,36,41,76,66,65,54,90,75,95,86,125,89,88,87,96,92,106,96,102,96,100,96,147,91,135,140,122,103,179,0,252,244,314,308,308,305,304,297,411,436,754,338,464,453,441,437,486,481,728,352,345,321,326,343,356,354,327,260,422,420,533,567,630,550,552,533,560,554,566,565,566,562,564,561,542,494,508,342,928,854,5181,4876,3537,2585,5082,4906,5716,5061,29977,29978,29977,29978,29978,29979,29981,29979,29989,29986]} 1. d4 {[%emt 0:00:03]} e6 {[%emt 0:02:57]} 2. Nf3 {[%emt 0:00:09]} d5 {[%emt 0:00:15]} 3. Bg5 {[%emt 0:00:10]} Be7 {[%emt 0:00:16]} 4. Bxe7 {[%emt 0:00:20]} Nxe7 {[%emt 0:00:04]} 5. e3 {[%emt 0:00:11]} O-O {[%emt 0:00:24]} 6. Bd3 {[%emt 0:00:06] D02: 1 d4 d5 2 Nf3 sidelines, including 2...Nf6 3 g3 and 2...Nf6 3 Bf4.} f5 {[%emt 0:00:36]} (6... c5 $11) 7. Nbd2 {[%emt 0:01:28]} Nd7 {[%emt 0:00:40]} 8. O-O {[%emt 0:01:20] [#] White is slightly better.} Ng6 $146 {[%emt 0:01:44]} ({Predecessor:} 8... Qe8 9. c4 c6 10. Rc1 Nf6 11. Ne5 Ng6 12. Ndf3 Nd7 13. Nxd7 Bxd7 14. Qb3 Rb8 {½-½ (23) Tskhadadze,A-Fershtman,P St Petersburg 2007}) 9. c4 {[%emt 0:00:51]} c6 {[%emt 0:00:03]} 10. Qc2 {[%emt 0:01:12]} Nf6 {[%emt 1:28:31]} 11. cxd5 {[%emt 0:01:43]} Nxd5 {[%emt 0:00:00]} 12. a3 {[%emt 0:00:26]} Bd7 {[%emt 0:00:00]} 13. Rac1 {[%emt 0:01:38]} Rc8 {[%emt 0:00:00]} 14. Nc4 {[%emt 0:00:21]} Qe7 {[%emt 0:00:00]} 15. b4 {[%emt 0:00:52] Against c5} Rc7 {[%emt 0:00:00]} 16. Rfe1 {[%emt 0:07:51]} Nh4 {[%emt 0:03:00]} 17. Nce5 {[%emt 0:01:09]} Nxf3+ {[%emt 0:00:00]} 18. Nxf3 {[%emt 0:00:16]} Qf6 {[%emt 0:00:00]} 19. Qc5 {[%emt 0:04:51]} Bc8 {[%emt 0:00:00]} ({Black should try} 19... a6) 20. Qd6 {[%emt 0:06:39]} (20. Qxa7 $142 b5 21. Qc5) 20... Qh6 {[%emt 0:00:00]} 21. Bc4 {[%emt 0:02:05]} Rd7 {[%emt 0:00:00]} 22. Qe5 $36 {[%emt 0:03:30][%mdl 2048] White is really pushing.} Rdf7 {[%emt 0:00:00]} (22... Rdd8 $16 {was called for.} 23. Qb8 a6) 23. Qd6 $2 {[%emt 0:06:19]} (23. b5 $18) 23... Rf6 $2 {[%emt 0:00:00][%mdl 8192]} (23... Rd7 $11 {and Black has nothing to worry.} 24. Qc5 a6) 24. b5 $18 {[%emt 0:01:38]} f4 {[%emt 0:00:00][%cal Rf4e3]} 25. e4 {[%emt 0:00:56]} ({Stronger than} 25. bxc6 fxe3 26. Bxd5 exd5 27. Qxd5+ Be6 $11) 25... Nb6 {[%emt 0:00:00]} 26. bxc6 {[%emt 0:01:24]} Nxc4 {[%emt 0:00:00]} 27. Rxc4 {[%emt 0:00:14] Hoping for cxb7.} bxc6 {[%emt 0:00:00]} 28. Rxc6 {[%emt 0:03:04]} Rg6 {[%emt 0:00:46]} (28... e5 $142 29. Qxf8+ Kxf8 30. Rxc8+ Ke7) 29. Kf1 {[%emt 0:07:57]} (29. Rb1 $142 {[%cal Od6f8] And now Qxf8+! would win.} Qh5 {[#]} 30. Rxc8 $1 {[%mdl 512]} Rxc8 31. Rb8 Rxg2+ 32. Kxg2 Qg6+ 33. Kf1) 29... Bb7 {[%emt 0:03:50]} 30. Rc7 {[%emt 0:01:37]} e5 {[%emt 0:00:05]} 31. Qxe5 {[%emt 0:00:57]} Ba6+ {[%emt 0:00:32]} 32. Kg1 {[%emt 0:00:09]} Qh3 {[%emt 0:00:04]} (32... Rb6 $142 33. Rxa7 Qf6 34. Qd5+ Qe6) 33. Rxg7+ {[%emt 0:00:32]} Rxg7 {[%emt 0:01:24] [#]} 34. Qxg7+ {[%emt 0:00:05][%mdl 512]} Kxg7 {[%emt 0:00:04]} 35. gxh3 {[%emt 0:00:08][%mdl 4096] Endgame KRB-KRN} Rc8 {[%emt 0:00:57]} 36. Kg2 {[%emt 0:00:31]} Rc3 {[%emt 0:00:08]} 37. Ng5 {[%emt 0:01:57] Threatens to win with Ne6+.} Kg6 $2 {[%emt 0:00:26]} (37... Bc8 38. d5 h6) 38. Ne6 {[%emt 0:00:18]} f3+ {[%emt 0:00:44]} 39. Kg3 {[%emt 0:00:05]} Be2 {[%emt 0:00:55]} 40. Ra1 {[%emt 0:00:31]} Kf6 {[%emt 0:01:16]} 41. Nf4 {[%emt 0:00:20]} Rc4 {[%emt 0:00:23]} 42. Ra2 {[%emt 0:01:45]} Rxd4 {[%emt 0:00:36]} 43. Nxe2 {[%emt 0:00:12]} fxe2 {[%emt 0:00:22]} 44. Rxe2 {[%emt 0:00:08] KR-KR} Ke5 {[%emt 0:01:28]} 45. f4+ {[%emt 0:00:16][%cal Bf2f4,Bf4f5][%mdl 32]} Ke6 {[%emt 0:00:00]} 46. Re3 {[%emt 0:00:14]} a5 {[%emt 0:00:00]} 47. e5 {[%emt 0:03:05] Kg4 is the strong threat.} a4 $2 {[%emt 0:00:00]} (47... h5 48. Kf3 Rd2 49. f5+ Kxf5) 48. Kg4 {[%emt 0:00:42]} Rd2 {[%emt 0:00:24]} 49. f5+ {[%emt 0:00:18]} Ke7 {[%emt 0:00:24]} 50. Re4 {[%emt 0:00:20]} Rg2+ {[%emt 0:00:31]} 51. Kf3 {[%emt 0:01:33]} Rxh2 {[%emt 0:00:01]} 52. Kg3 {[%emt 0:00:07]} Rd2 {[%emt 0:00:36]} 53. Rxa4 {[%emt 0:00:04] White mates.} Rd3+ {[%emt 0:00:23]} 54. Kg4 {[%emt 0:00:02]} Re3 {[%emt 0:00:22]} 55. Ra7+ {[%emt 0:00:21]} Kf8 {[%emt 0:00:19]} 56. e6 {[%emt 0:00:06]} Kg8 {[%emt 0:00:19]} 57. h4 {[%emt 0:00:24] Weighted Error Value: White=0.41/Black=0.43} 1-0

[Event "IV Estrellas 2022"]
[Site "La Palma"]
[Date "2022.08.12"]
[Round "9.1"]
[White "Baskin, Robert"]
[Black "Geske, Julian"]
[Result "1/2-1/2"]
[ECO "C02"]
[WhiteElo "2408"]
[BlackElo "2386"]
[Annotator "TA"]
[PlyCount "31"]
[EventDate "2022.08.06"]
[EventType "swiss"]
[EventCountry "ESP"]
[SourceTitle "playchess.com"]
[Source "ChessBase"]
[SourceQuality "1"]
[TimeControl "5400+30"]

{[%evp 14,31,0,0,-8,-42,-32,-25,-25,-37,-30,-31,0,0,0,0,0,0,0,0]} 1. e4 {[%emt 0:00:14]} e6 {[%emt 0:00:08]} 2. d4 {[%emt 0:00:16]} d5 {[%emt 0:00:05]} 3. e5 {[%emt 0:00:29]} c5 {[%emt 0:00:11]} 4. c3 {[%emt 0:00:05]} Nc6 {[%emt 0:00:07]} 5. Nf3 {[%emt 0:00:07]} Qb6 {[%emt 0:00:13]} 6. Be2 {[%emt 0:00:53]} cxd4 {[%emt 0:01:06]} 7. cxd4 {[%emt 0:00:06]} Nh6 {[%emt 0:00:34]} 8. Bxh6 $1 {[%emt 0:00:32][%mdl 4] [#] aiming for Bc1. is more profitable than 8.Nc3 at the moment.} Qxb2 {[%emt 0:00:47] C02: French: Advance Variation.} 9. Nc3 {[%emt 0:00:48]} Qxc3+ {[%emt 0:00:23]} 10. Bd2 {[%emt 0:00:05]} Qb2 {[%emt 0:00:08] [#] Black has an edge.} 11. Kf1 $146 {[%emt 0:00:13]} ({Predecessor:} 11. O-O a6 12. Kh1 Be7 13. a4 Qb6 14. a5 Qa7 15. Bd3 Bd7 16. Qb1 g5 17. Bxg5 Bxg5 18. Nxg5 Qxd4 {½-½ (70) Durarbayli,V (2629)-Baskin,R (2383) Chess.com INT 2021}) 11... Bd7 {[%emt 0:00:49]} (11... Nxd4 $2 12. Rb1 Qc2 13. Nxd4 Qxd1+ 14. Rxd1 $18) 12. a4 {[%emt 0:00:09]} Be7 {[%emt 0:00:12]} ({Resist} 12... Nxd4 13. Rb1 Qc2 14. Nxd4 Qxd1+ 15. Bxd1 $16) 13. Rb1 {[%emt 0:00:05][%mdl 64] [#] Deflection. The position is equal.} Qa2 {[%emt 0:00:07]} 14. Ra1 {[%emt 0:00:07]} Qb2 {[%emt 0:00:05]} 15. Rb1 {[%emt 0:00:03][%mdl 64] Deflection} Qa2 {[%emt 0:00:05]} 16. Ra1 {[%emt 0:00:05] Weighted Error Value: White=0.08 (flawless) /Black=0.06 (flawless)} 1/2-1/2

[Event "IV Estrellas 2022"]
[Site "La Palma"]
[Date "2022.08.12"]
[Round "9.2"]
[White "Del Rio De Angelis, Salvador G."]
[Black "Pap, Misa"]
[Result "1/2-1/2"]
[ECO "E45"]
[WhiteElo "2442"]
[BlackElo "2375"]
[Annotator "TA"]
[PlyCount "34"]
[EventDate "2022.08.06"]
[EventType "swiss"]
[EventCountry "ESP"]
[SourceTitle "playchess.com"]
[Source "ChessBase"]
[SourceQuality "1"]
[TimeControl "5400+30"]

{[%evp 11,21,9,11,-4,-3,6,12,2,6,4,0,-6]} 1. d4 {[%emt 0:00:13]} Nf6 {[%emt 0:00:06]} 2. c4 {[%emt 0:00:08]} e6 {[%emt 0:00:05]} 3. Nc3 {[%emt 0:00:11]} Bb4 {[%emt 0:00:09]} 4. e3 {[%emt 0:00:12]} b6 {[%emt 0:00:43]} 5. Nge2 {[%emt 0:00:13]} Ba6 {[%emt 0:00:33]} 6. Ng3 {[%emt 0:00:21]} O-O {[%emt 0:00:23] The position is equal.} 7. Bd3 {[%emt 0:00:31] E45: Nimzo-Indian: Rubinstein: 4...b6 5 Ne2 Ba6.} d5 {[%emt 0:00:21]} 8. cxd5 {[%emt 0:00:08]} Bxd3 {[%emt 0:00:19]} 9. Qxd3 {[%emt 0:00:08] Black should prevent dxe6.} exd5 {[%emt 0:00:04]} 10. O-O {[%emt 0:00:18]} Re8 {[%emt 0:00:21]} 11. Bd2 {[%emt 0:00:17] [#] An interesting draw.  Weighted Error Value: White=0.05 (flawless) /Black=0.01 (flawless)} {Predecessor:} Nbd7 $146 12. Rfd1 Qb8 13. Rac1 Bxc3 14. Qxc3 c5 15. dxc5 Nxc5 16. Qd4 Qd6 17. Bc3 Qe6 {1-0 (72) Jussupow,A (2635)-Braun,P (2265) Schwaebisch Gmuend 2000} 1/2-1/2